fUST/lending_fUST_20260407
["ID","MTS","AMOUNT","RATE_DAILY","PERIOD"]
[419965659,1775567450706,-605.69354923,0.00032876,2]
[419965660,1775567450716,-605.69354923,0.00032876,2]
[419965661,1775567450726,-605.69354923,0.00032876,2]
[419965662,1775567450735,-605.69354923,0.00032876,2]
[419965663,1775567450744,-605.69354923,0.00032876,2]
[419965664,1775567450755,-605.69354923,0.00032876,2]
[419965665,1775567450764,-605.69354923,0.00032876,2]
[419965666,1775567450774,-605.69354923,0.00032876,2]
[419965667,1775567450783,-605.69354923,0.00032876,2]
[419965668,1775567450792,-605.69354923,0.00032876,2]
[419965669,1775567450801,-605.69354923,0.00032876,2]
[419965670,1775567450811,-605.69354923,0.00032876,2]
[419965671,1775567450820,-605.69354923,0.00032876,2]
[419965672,1775567450829,-605.69354923,0.00032876,2]
[419965673,1775567450839,-605.69354923,0.00032876,2]
[419965674,1775567450848,-605.69354923,0.00032876,2]
[419965675,1775567450858,-605.69354923,0.00032876,2]
[419965676,1775567450868,-605.69354923,0.00032876,2]
[419965677,1775567450879,-605.69354923,0.00032876,2]
[419965678,1775567450889,-605.69354923,0.00032876,2]
[419965679,1775567450899,-605.69354923,0.00032876,2]
[419965680,1775567450908,-605.69354923,0.00032876,2]
[419965681,1775567450917,-605.69354923,0.00032876,2]
[419965682,1775567450927,-605.69354923,0.00032876,2]
[419965683,1775567450936,-605.69354923,0.00032876,2]
[419965684,1775567450946,-605.69354923,0.00032876,2]
[419965685,1775567450957,-605.69354923,0.00032876,2]
[419965686,1775567450969,-605.69354923,0.00032876,2]
[419965687,1775567450978,-605.69354923,0.00032876,2]
[419965688,1775567450988,-605.69354923,0.00032876,2]
[419965689,1775567450998,-605.69354923,0.00032876,2]
[419965690,1775567451007,-605.69354923,0.00032876,2]
[419965691,1775567451017,-605.69354923,0.00032876,2]
[419965692,1775567451026,-605.69354923,0.00032876,2]
[419965693,1775567451035,-1562.05178483,0.00032876,2]
[419965694,1775567451045,-1562.05178483,0.00032876,2]
[419965695,1775567451055,-1562.05178483,0.00032876,2]
[419965696,1775567451064,-500.0,0.00032876,2]
[419965697,1775567451073,-1562.05178483,0.00032876,2]
[419965698,1775567451082,-1562.05178483,0.00032876,2]
[419965699,1775567451092,-1562.05178483,0.00032876,2]
[419965700,1775567451101,-1562.05178483,0.00032876,2]
[419965701,1775567451111,-1562.05178483,0.00032876,2]
[419965702,1775567451121,-1562.05178483,0.00032876,2]
[419965703,1775567451130,-1562.05178483,0.00032876,2]
[419965704,1775567451140,-1562.05178483,0.00032876,2]
[419965705,1775567451149,-1562.05178483,0.00032876,2]
[419965706,1775567451159,-1562.05178483,0.00032876,2]
[419965707,1775567451168,-1562.0517848,0.00032876,2]
[419965708,1775567451177,-980.0,0.00032876,120]
[419965709,1775567451240,-1290.0,0.00032877,14]
[419965710,1775567451249,-151.0,0.00032877,7]
[419965711,1775567451259,-151.0,0.00032877,7]
[419965712,1775567451269,-151.0,0.00032877,7]
[419965713,1775567451279,-151.0,0.00032877,7]
[419965714,1775567451289,-151.0,0.00032877,7]
[419965715,1775567451299,-151.0,0.00032877,7]
[419965716,1775567451309,-206.779658,0.00032877,7]
[419965717,1775567451318,-175.26,0.00032877,2]
[419965718,1775567451330,-1150.0,0.00032877,5]
[419965719,1775567451338,-304.2,0.00032877,7]
[419965720,1775567451349,-400483.0,0.00032877,30]
[419965721,1775567451358,-3028.42862798,0.00032877,120]
[419965722,1775567451369,-1000.0,0.00032877,120]
[419965723,1775567451378,-1000.0,0.00032877,120]
[419965724,1775567451389,-3598.39,0.00032877,120]
[419965725,1775567451398,-500.0,0.00032877,10]
[419965726,1775567451407,-500.0,0.00032877,12]
[419965727,1775567451416,-1030.89182783,0.00032877,120]
[419965728,1775567451425,-6270.26288767,0.00032879,120]
[419965729,1775567451435,-670.89164899,0.00032879,120]
[419965730,1775567451445,-985.51081757,0.00032879,120]
[419965731,1775567451455,-415.96,0.000329,2]
[419965732,1775567451464,-1000.0,0.000329,120]
[419965733,1775567451473,-3100.0,0.000329,7]
[419965734,1775567451483,-980.0,0.00032904,120]
[419965735,1775567451492,-980.0,0.00032931,120]
[419965736,1775567451502,-1419.64,0.00032937,60]
[419965737,1775567451511,-980.0,0.00032958,120]
[419965738,1775567451520,-250.0,0.00032964,27]
[419965739,1775567451529,-980.0,0.00032986,120]
[419965740,1775567451538,-380.59658562,0.00033,120]
[419965741,1775567451548,-2767.77065366,0.00033,30]
[419965742,1775567451557,-1159.89508188,0.00033,120]
[419965743,1775567451566,-851.7014651,0.00033,30]
[419965744,1775567451575,-14446.99139337,0.00033,14]
[419965745,1775567451584,-1000.0,0.00033,120]
[419965746,1775567451594,-980.0,0.00033013,120]
[419965747,1775567451603,-1419.64,0.00033037,60]
[419965748,1775567451613,-980.0,0.00033041,120]
[419965749,1775567451622,-980.0,0.00033068,120]
[419965750,1775567451632,-980.0,0.00033095,120]
[419965751,1775567451641,-1000.0,0.00033096,30]
[419965752,1775567451656,-492.0,0.00033096,30]
[419965753,1775567451665,-227.35200633,0.000331,30]
[419965754,1775567451674,-2236.403,0.000331,20]
[419965755,1775567451684,-2236.403,0.000331,20]
[419965756,1775567451693,-2236.4,0.000331,20]
[419965757,1775567451702,-405.21,0.000331,20]
[419965758,1775567451712,-462.37,0.000331,30]
[419965759,1775567451721,-2027.26,0.000331,30]
[419965760,1775567451730,-1506.275,0.000331,10]
[419965761,1775567451740,-1506.27,0.000331,10]
[419965762,1775567451749,-1501.95,0.000331,20]
[419965763,1775567451758,-1501.95,0.000331,20]
[419965764,1775567451768,-1698.247,0.000331,10]
[419965765,1775567451777,-1698.247,0.000331,10]
[419965766,1775567451786,-1698.24,0.000331,10]
[419965767,1775567451795,-582.505,0.000331,10]
[419965768,1775567451804,-581.715,0.000331,30]
[419965769,1775567451813,-1614.476,0.000331,30]
[419965770,1775567451822,-462.37,0.000331,30]
[419965771,1775567451831,-1717.9875,0.000331,30]
[419965772,1775567451840,-1215.022,0.000331,10]
[419965773,1775567451850,-1215.02,0.000331,10]
[419965774,1775567451860,-1501.95,0.000331,20]
[419965775,1775567451869,-1501.95,0.000331,20]
[419965776,1775567451878,-423.223,0.000331,30]
[419965777,1775567451887,-951.5799,0.000331,20]
[419965778,1775567451896,-980.0,0.00033123,120]
[419965779,1775567451905,-1419.64,0.00033137,60]
[419965780,1775567451914,-451.0,0.0003315,11]
[419965781,1775567451923,-980.0,0.0003315,120]
[419965782,1775567451933,-2300.0,0.00033168,7]
[419965783,1775567451942,-980.0,0.00033178,120]
[419965784,1775567451952,-1071.81,0.000332,120]
[419965785,1775567451961,-980.0,0.00033205,120]
[419965786,1775567451970,-319.01166387,0.00033228,14]
[419965787,1775567451980,-233.86,0.00033228,90]
[419965788,1775567451990,-161.84336846,0.0003323,2]
[419965789,1775567451999,-980.0,0.00033232,120]
[419965790,1775567452008,-1419.64,0.00033237,60]
[419965791,1775567452016,-980.0,0.0003326,120]
[419965792,1775567452026,-346.22777786,0.00033261,30]
[419965793,1775567452035,-980.0,0.00033287,120]
[419965794,1775567452046,-250.0,0.00033299,29]
[419965795,1775567452056,-2785951.53146173,0.000333,120]
[419965796,1775567452461,-1046.07707329,0.000333,120]
[419965797,1775567452520,-181.229656,0.00021918,2]
[419965798,1775567452529,-181.229656,0.00021918,2]
[419965799,1775567452538,-181.229656,0.00021918,2]
[419965800,1775567452547,-181.229656,0.00021918,2]
[419965801,1775567452556,-181.229656,0.00021918,2]
[419965802,1775567452565,-181.229656,0.00021918,2]
[419965803,1775567452575,-437.0,0.00022835,10]
[419965804,1775567452584,-1155.0,0.00022835,10]
[419965805,1775567452593,-501.0,0.00022835,7]
[419965806,1775567452603,-1029.0,0.00029,2]
[419965807,1775567452612,-215.10749386,0.0003,7]
[419965808,1775567452627,-568.68040404,0.0003,7]
[419965809,1775567452757,-181.229656,0.00021918,2]
[419965810,1775567452766,-181.229656,0.00021918,2]
[419965811,1775567452775,-181.229656,0.00021918,2]
[419965812,1775567452784,-181.229656,0.00021918,2]
[419965813,1775567452793,-181.229656,0.00021918,2]
[419965814,1775567452802,-181.229656,0.00021918,2]
[419965815,1775567452811,-181.229656,0.00021918,2]
[419965816,1775567452820,-181.229656,0.00021918,2]
[419965817,1775567452828,-181.229656,0.00021918,2]
[419965818,1775567452838,-181.229656,0.00021918,2]
[419965819,1775567452848,-551.0,0.00024794,10]
[419965820,1775567452857,-1035.0,0.00025,2]
[419965821,1775567452866,-1029.0,0.00026,2]
[419965822,1775567452875,-932.25345909,0.00027,2]
[419965823,1775567452931,-96.74654091,0.00027,2]
[419965824,1775567452940,-1029.0,0.00028,2]
[419965825,1775567452950,-1062.15,0.00028,30]
[419965826,1775567452959,-245.2121021,0.0003,7]
[419965827,1775567452968,-634.0,0.00032876,30]
[419965828,1775567452978,-505.0,0.00032876,30]
[419965829,1775567452987,-14345.37359699,0.000333,120]
[419965869,1775567825848,694.72,0.0001001,2]
[419965872,1775567853227,694.7,0.0001001,2]
[419965915,1775568191608,250.0,0.0001001,2]
[419966109,1775568638241,-2505.66351195,0.00011782,2]
[419966207,1775568643257,-1909.34647797,0.00011782,2]
[419966208,1775568643314,-584.99001008,0.00011782,2]
[419966209,1775568643324,-1013.0,0.000119,2]
[419966210,1775568643334,-1924.27040867,0.00011901,2]
[419966214,1775568646125,-3075.72959133,0.00011901,2]
[419966215,1775568646135,-300.0,0.0001202,2]
[419966216,1775568646145,-4356.2437875,0.00012021,2]
[419966217,1775568646158,-643.7562125,0.00012021,2]
[419966218,1775568646168,-300.0,0.00012141,2]
[419966219,1775568646177,-300.0,0.00012141,2]
[419966220,1775568646187,-363.0,0.00013326,2]
[419966221,1775568646197,-1000.0,0.00013699,2]
[419966222,1775568646207,-600.0,0.00019732,2]
[419966223,1775568646216,-160.44,0.0002,2]
[419966224,1775568646226,-481.56,0.0002,2]
[419966225,1775568646236,-580.0,0.0002,2]
[419966226,1775568646246,-158.38,0.0002,2]
[419966227,1775568646256,-533.277,0.00021308,2]
[419966228,1775568646265,-185.0,0.00021308,2]
[419966229,1775568646275,-720.0,0.00021705,10]
[419966230,1775568646284,-270.83333333,0.00023,2]
[419966231,1775568646293,-421.0,0.00023076,7]
[419966232,1775568646303,-867.0,0.00023076,10]
[419966233,1775568646312,-439.0,0.00023076,10]
[419966234,1775568646322,-168.0,0.00023699,11]
[419966235,1775568646332,-864.0,0.00023875,10]
[419966236,1775568646342,-726.38421747,0.00024,5]
[419966237,1775568646787,-4277.61578253,0.00024,5]
[419966238,1775568646797,-440.0,0.00024308,2]
[419966239,1775568646808,-184.0,0.00024308,2]
[419966240,1775568646818,-1000.0,0.000248,5]
[419966241,1775568646828,-500.0,0.00025628,30]
[419966242,1775568646839,-500.0,0.00025628,30]
[419966243,1775568646849,-500.0,0.00025628,30]
[419966244,1775568646859,-65.38636071,0.00025628,30]
[419966245,1775568646872,-434.61363929,0.00025628,30]
[419966246,1775568646882,-500.0,0.00025628,30]
[419966247,1775568646892,-918.1795252,0.00025628,30]
[419966248,1775568646902,-500.0,0.00025628,30]
[419966249,1775568646911,-500.0,0.00025628,30]
[419966250,1775568646921,-500.0,0.00025628,30]
[419966251,1775568646931,-500.0,0.00025628,30]
[419966252,1775568646941,-500.0,0.00025628,30]
[419966253,1775568646951,-500.0,0.00025628,30]
[419966254,1775568646961,-500.0,0.00025628,30]
[419966255,1775568646971,-500.0,0.00025628,30]
[419966256,1775568646980,-500.0,0.00025628,30]
[419966257,1775568646990,-700.5653486,0.00025628,30]
[419966258,1775568647000,-1902.0,0.00026,2]
[419966259,1775568647010,-1000.0,0.00026263,30]
[419966260,1775568647020,-363.41,0.00026368,7]
[419966261,1775568647030,-508.13361781,0.00026675,2]
[419966262,1775568647041,-1000.0,0.000268,10]
[419966263,1775568647051,-1000.0,0.000268,20]
[419966264,1775568647061,-1004.48,0.000272,30]
[419966265,1775568647070,-500.0,0.00027296,2]
[419966266,1775568647080,-500.0,0.00027296,2]
[419966267,1775568647090,-500.0,0.00027296,2]
[419966268,1775568647100,-318.83298531,0.00027296,2]
[419966269,1775568647109,-500.0,0.00027296,2]
[419966270,1775568647119,-329.49773896,0.00027296,2]
[419966271,1775568647128,-500.0,0.00027296,2]
[419966272,1775568647138,-500.0,0.00027296,2]
[419966273,1775568647147,-500.0,0.00027296,2]
[419966274,1775568647158,-13039.12464441,0.00027297,2]
[419966316,1775569832258,-2378.3569291,0.00012142,2]
[419966328,1775569838481,-1302.88396548,0.00012142,2]
[419966329,1775569838493,-1318.75910542,0.00012142,2]
[419966330,1775569838503,-5000.0,0.00012265,2]
[419966331,1775569838513,-782.0,0.00012388,2]
[419966332,1775569838522,-1000.0,0.00013699,2]
[419966333,1775569838531,-301.63,0.0002,2]
[419966334,1775569838541,-561.02,0.0002,2]
[419966335,1775569838550,-421.0,0.00023076,10]
[419966336,1775569838560,-428.0,0.00023076,7]
[419966337,1775569838569,-650.0,0.00023076,10]
[419966338,1775569838578,-160.0,0.00023707,2]
[419966339,1775569838587,-200.0,0.00024352,2]
[419966340,1775569838597,-200.0,0.00024386,2]
[419966341,1775569838607,-200.0,0.00024421,2]
[419966342,1775569838617,-200.0,0.00024455,2]
[419966343,1775569838627,-200.0,0.00024489,2]
[419966344,1775569838639,-200.0,0.00024524,2]
[419966345,1775569838650,-200.0,0.00024558,2]
[419966346,1775569838661,-300.0,0.00024936,2]
[419966347,1775569838672,-225.0,0.00025,2]
[419966348,1775569838682,-270.83333333,0.00025502,2]
[419966349,1775569838693,-959.0897626,0.00025645,30]
[419966350,1775569838704,-500.0,0.00025645,30]
[419966351,1775569838715,-500.0,0.00025645,30]
[419966352,1775569838726,-500.0,0.00025645,30]
[419966353,1775569838736,-500.0,0.00025645,30]
[419966354,1775569838747,-500.0,0.00025645,30]
[419966355,1775569838757,-850.2826743,0.00025645,30]
[419966356,1775569838767,-1217.4688581,0.00025806,2]
[419966357,1775569838777,-664.1037902,0.00025806,2]
[419966358,1775569838788,-338.75574521,0.00026675,2]
[419966359,1775569838798,-151.97493871,0.00026897,2]
[419966360,1775569838808,-473.99,0.00026987,3]
[419966361,1775569838818,-237.0,0.00026987,3]
[419966362,1775569838828,-711.02,0.00026987,3]
[419966363,1775569838838,-500.0,0.00026996,2]
[419966364,1775569838848,-500.0,0.00026996,2]
[419966365,1775569838858,-500.0,0.00026996,2]
[419966366,1775569838867,-500.0,0.00026996,2]
[419966367,1775569838877,-500.0,0.00026996,2]
[419966368,1775569838887,-500.0,0.00026996,2]
[419966369,1775569838897,-500.0,0.00026996,2]
[419966370,1775569838907,-500.0,0.00026996,2]
[419966371,1775569838916,-500.0,0.00026996,2]
[419966372,1775569838926,-500.0,0.00026996,2]
[419966373,1775569838935,-500.0,0.00026996,2]
[419966374,1775569838945,-247.79493274,0.00026996,2]
[419966375,1775569838955,-500.0,0.00026996,2]
[419966376,1775569838964,-615.95701265,0.00026996,2]
[419966377,1775569838973,-500.0,0.00026996,2]
[419966378,1775569838982,-500.0,0.00026996,2]
[419966379,1775569838994,-500.0,0.00026996,2]
[419966380,1775569839003,-503.05351913,0.00026996,2]
[419966381,1775569839013,-500.0,0.00026996,2]
[419966382,1775569839022,-168.9517238,0.00026996,2]
[419966383,1775569839032,-500.0,0.00026996,2]
[419966384,1775569839041,-500.0,0.00026996,2]
[419966385,1775569839051,-500.0,0.00026996,2]
[419966386,1775569839060,-500.0,0.00026996,2]
[419966387,1775569839070,-500.0,0.00026996,2]
[419966388,1775569839079,-500.0,0.00026996,2]
[419966389,1775569839089,-500.0,0.00026996,2]
[419966390,1775569839098,-347.800358,0.00026996,2]
[419966391,1775569839108,-500.0,0.00026996,2]
[419966392,1775569839117,-500.0,0.00026996,2]
[419966393,1775569839127,-500.0,0.00026996,2]
[419966394,1775569839137,-500.0,0.00026996,2]
[419966395,1775569839147,-500.0,0.00026996,2]
[419966396,1775569839156,-512.22753986,0.00026996,2]
[419966397,1775569839166,-500.0,0.00026996,2]
[419966398,1775569839175,-500.0,0.00026996,2]
[419966399,1775569839185,-500.0,0.00026996,2]
[419966400,1775569839195,-500.0,0.00026996,2]
[419966401,1775569839205,-500.0,0.00026996,2]
[419966402,1775569839214,-500.0,0.00026996,2]
[419966403,1775569839224,-500.0,0.00026996,2]
[419966404,1775569839234,-500.0,0.00026996,2]
[419966405,1775569839254,-500.0,0.00026996,2]
[419966406,1775569839264,-500.0,0.00026996,2]
[419966407,1775569839273,-500.0,0.00026996,2]
[419966408,1775569839282,-600.0,0.00026996,2]
[419966409,1775569839292,-200.0,0.00026997,2]
[419966410,1775569839301,-133806.35640305,0.00026997,2]
[419966411,1775569839314,-1477.8415112,0.00026997,2]
[419966433,1775569841801,-200.0,0.00024249,2]
[419966435,1775569841811,-200.0,0.00024283,2]
[419966438,1775569841824,-200.0,0.00024318,2]
[419966440,1775569841835,-84.77,0.00026675,2]
[419966442,1775569841846,-141.06716347,0.00026675,2]
[419966444,1775569841856,-1177.0,0.00026997,10]
[419966446,1775569841865,-806.0,0.00026997,10]
[419966448,1775569841876,-487.0,0.00026997,10]
[419966450,1775569841885,-5944.81494754,0.00026997,2]
[419966452,1775569841897,-6423.94677741,0.00026997,2]
[419966455,1775569841913,-671.77936835,0.00026997,2]
[419966479,1775569843560,-672.0,0.00026997,10]
[419966480,1775569843571,-973.0,0.00026997,10]
[419966481,1775569843583,-882.0,0.00026997,10]
[419966482,1775569843594,-48086.74792775,0.00026997,2]
[419966486,1775569843720,-1563.83098617,0.00026997,2]
[419966558,1775569846534,-1488.79058318,0.00024007,2]
[419966565,1775569846589,-3511.20941682,0.00024007,2]
[419966567,1775569846598,-150.55810898,0.00026675,2]
[419966569,1775569846608,-627.0,0.00026997,10]
[419966571,1775569846618,-487.0,0.00026997,10]
[419966573,1775569846627,-662.0,0.00026997,10]
[419966575,1775569846637,-100615.41232669,0.00026997,2]
[419966577,1775569846647,-42313.98715382,0.00026997,2]
[419967188,1775571012808,865.74241313,7.6e-05,2]
[419967189,1775571018733,18500.0,9e-05,2]
[419967200,1775571032423,-1517.41715958,0.00012141,2]
[419967202,1775571032435,-331.54164103,0.00012141,2]
[419967207,1775571032478,-3151.04119939,0.00012141,2]
[419967208,1775571032493,-1438.33600778,0.00012264,2]
[419967252,1775571038671,-245.07148545,0.00012264,2]
[419967253,1775571038682,-300.0,0.00012388,2]
[419967254,1775571038691,-161.0,0.00012388,2]
[419967255,1775571038702,-262.99,0.00012389,2]
[419967256,1775571038713,-1000.0,0.00013699,2]
[419967257,1775571038723,-311.9,0.0002,2]
[419967258,1775571038733,-3000.0,0.000205,2]
[419967259,1775571038743,-184.0,0.00021955,2]
[419967260,1775571038753,-270.83333333,0.00023,2]
[419967261,1775571038763,-496.0,0.00023076,7]
[419967262,1775571038773,-630.0,0.00023076,10]
[419967263,1775571038782,-200.0,0.00023767,2]
[419967264,1775571038792,-200.0,0.00023802,2]
[419967265,1775571038803,-200.0,0.00023836,2]
[419967266,1775571038813,-200.0,0.0002387,2]
[419967267,1775571038823,-200.0,0.00023905,2]
[419967268,1775571038833,-200.0,0.00023939,2]
[419967269,1775571038843,-200.0,0.00023974,2]
[419967270,1775571038853,-200.0,0.00024008,2]
[419967271,1775571038863,-200.0,0.00024042,2]
[419967272,1775571038872,-200.0,0.00024077,2]
[419967273,1775571038881,-200.0,0.00024558,2]
[419967274,1775571038891,-1000.0,0.00024931,30]
[419967275,1775571038900,-184.0,0.00024955,2]
[419967276,1775571038909,-256.79231915,0.00025,20]
[419967277,1775571038919,-586.99709157,0.000252,5]
[419967278,1775571038929,-500.0,0.00025826,30]
[419967279,1775571038938,-264.3729979,0.00025826,30]
[419967280,1775571038947,-500.0,0.00025826,30]
[419967281,1775571038958,-500.0,0.00025826,30]
[419967282,1775571038967,-500.0,0.00025826,30]
[419967283,1775571038977,-500.0,0.00025826,30]
[419967284,1775571038986,-500.0,0.00025826,30]
[419967285,1775571038996,-500.0,0.00025826,30]
[419967286,1775571039006,-500.0,0.00025826,30]
[419967287,1775571039015,-500.0,0.00025826,30]
[419967288,1775571039024,-375.7201542,0.00025826,30]
[419967289,1775571039034,-419.1524192,0.00025826,30]
[419967290,1775571039043,-197.923247,0.00025826,30]
[419967291,1775571039053,-250.0,0.00025826,30]
[419967292,1775571039062,-250.4062008,0.00025826,30]
[419967293,1775571039072,-500.0,0.00025826,30]
[419967294,1775571039082,-500.0,0.00025826,30]
[419967295,1775571039091,-675.1413372,0.00025826,30]
[419967296,1775571039101,-250.0,0.00025826,30]
[419967297,1775571039111,-500.0,0.00025826,30]
[419967298,1775571039121,-14.90779979,0.00025826,30]
[419967299,1775571039134,-485.09220021,0.00025826,30]
[419967300,1775571039144,-152.2085146,0.00025826,30]
[419967301,1775571039154,-778.4172087,0.00025826,30]
[419967302,1775571039164,-104.37082648,0.00026675,2]
[419967303,1775571039176,-46.18728251,0.00026675,2]
[419967304,1775571039186,-151.97493871,0.00026697,2]
[419967305,1775571039195,-862.7,0.00026787,3]
[419967306,1775571039206,-431.35,0.00026787,3]
[419967307,1775571039216,-215.68,0.00026787,3]
[419967308,1775571039226,-647.06,0.00026787,3]
[419967309,1775571039236,-500.0,0.00026796,2]
[419967310,1775571039247,-612.46972665,0.00026796,2]
[419967311,1775571039257,-500.0,0.00026796,2]
[419967312,1775571039266,-500.0,0.00026796,2]
[419967313,1775571039276,-573.45645292,0.00026796,2]
[419967314,1775571039286,-90.77071972,0.00026796,2]
[419967315,1775571039298,-170.09598673,0.00026796,2]
[419967316,1775571039307,-500.0,0.00026796,2]
[419967317,1775571039327,-500.0,0.00026796,2]
[419967318,1775571039340,-500.0,0.00026796,2]
[419967319,1775571039350,-500.0,0.00026796,2]
[419967320,1775571039360,-500.0,0.00026796,2]
[419967321,1775571039371,-500.0,0.00026796,2]
[419967322,1775571039381,-500.0,0.00026796,2]
[419967323,1775571039392,-500.0,0.00026796,2]
[419967324,1775571039402,-180.35097266,0.00026796,2]
[419967325,1775571039413,-110260.94676997,0.00026797,2]
[419967326,1775571039426,-2849.8060003,0.00026797,2]
[419967337,1775571041318,-4135.99999999,0.00012141,2]
[419967338,1775571041371,-864.00000001,0.00012141,2]
[419967339,1775571041382,-578.0,0.00026797,10]
[419967340,1775571041393,-372.0,0.00026797,10]
[419967341,1775571041403,-793.99999999,0.00026797,2]
[419967547,1775571044013,-482.0,0.00026797,10]
[419967549,1775571044023,-279.0,0.00026797,10]
[419967551,1775571044034,-11068.16937753,0.00026797,2]
[419967566,1775571044173,-9025.04378727,0.00026797,2]
[419967842,1775571047273,-449.0,0.00026797,10]
[419967844,1775571047284,-836.0,0.00026797,10]
[419967846,1775571047294,-4143.0,0.00026797,2]
[419967867,1775571047490,-16415.05310804,0.00026797,2]
[419968487,1775572233729,-480.24782474,0.00011782,2]
[419968488,1775572233742,-423.92082829,0.00011782,2]
[419968489,1775572233785,-4095.83134697,0.00011782,2]
[419968490,1775572233797,-2358.96687731,0.00011901,2]
[419968491,1775572233812,-3075.72959133,0.00012021,2]
[419968493,1775572233825,-300.0,0.00012264,2]
[419968495,1775572233836,-300.0,0.00012264,2]
[419968497,1775572233847,-1000.0,0.00013699,2]
[419968498,1775572233859,-644.0,0.00022435,2]
[419968499,1775572233871,-184.0,0.00022435,2]
[419968500,1775572233883,-182.83805213,0.00022435,2]
[419968505,1775572238854,-288.63,0.0002,2]
[419968506,1775572238865,-257.16194787,0.00022435,2]
[419968508,1775572238876,-711.0,0.00023138,10]
[419968510,1775572238886,-245.199602,0.00023405,2]
[419968512,1775572238897,-3569.7632543,0.00023592,2]
[419968514,1775572238907,-301.92919381,0.00024364,2]
[419968516,1775572238917,-406.10670757,0.00024364,2]
[419968518,1775572238927,-17.23428161,0.00025,5]
[419968528,1775572239015,-151.47441616,0.00025,5]
[419968530,1775572239025,-184.0,0.00025435,2]
[419968532,1775572239036,-270.83333333,0.00025774,2]
[419968533,1775572239047,-250.0,0.00025834,30]
[419968534,1775572239057,-500.0,0.00025834,30]
[419968535,1775572239067,-500.0,0.00025834,30]
[419968536,1775572239077,-500.0,0.00025834,30]
[419968537,1775572239087,-500.0,0.00025834,30]
[419968538,1775572239097,-500.0,0.00025834,30]
[419968539,1775572239108,-639.2086044,0.00025834,30]
[419968540,1775572239118,-197.923247,0.00025834,30]
[419968541,1775572239128,-250.4062009,0.00025834,30]
[419968542,1775572239139,-187.8600771,0.00025834,30]
[419968543,1775572239150,-552.661852,0.00025834,30]
[419968544,1775572239160,-34.98442496,0.00025834,30]
[419968614,1775572241615,-592.0,0.00025834,10]
[419968616,1775572241627,-465.01557504,0.00025834,30]
[419968619,1775572241639,-837.5706686,0.00025834,30]
[419968621,1775572241651,-3438.99683468,0.00026499,2]
[419968623,1775572241662,-500.0,0.00026499,2]
[419968625,1775572241673,-500.0,0.00026499,2]
[419968627,1775572241684,-266.76032758,0.00026499,2]
[419968629,1775572241696,-500.0,0.00026499,2]
[419968631,1775572241707,-500.0,0.00026499,2]
[419968633,1775572241719,-500.0,0.00026499,2]
[419968635,1775572241730,-500.0,0.00026499,2]
[419968638,1775572241742,-500.0,0.00026499,2]
[419968640,1775572241752,-256.93319412,0.00026499,2]
[419968745,1775572246937,-243.06680588,0.00026499,2]
[419968746,1775572246948,-500.0,0.00026499,2]
[419968747,1775572246958,-500.0,0.00026499,2]
[419968748,1775572246968,-615.22005835,0.00026499,2]
[419968749,1775572246978,-313.32253228,0.00026499,2]
[419968750,1775572246988,-500.0,0.00026499,2]
[419968751,1775572246997,-500.0,0.00026499,2]
[419968752,1775572247006,-500.0,0.00026499,2]
[419968753,1775572247016,-500.0,0.00026499,2]
[419968754,1775572247026,-500.0,0.00026499,2]